bitfinex/quotes_BTCUSD_20240821
["timestamp","ask_amount","ask_price","bid_price","bid_amount"]
[1724251450933,0.001,60070.0,60069.0,0.16400298]
[1724251451409,0.00095838,60070.0,60069.0,0.33047798]
[1724251451835,0.00095838,60070.0,60069.0,0.16400298]
[1724251452052,0.00095838,60074.0,60070.0,0.332942]
[1724251452266,0.00095838,60074.0,60073.0,0.166464]
[1724251452472,0.00095838,60074.0,60073.0,1.08909498]
[1724251452696,0.00095838,60074.0,60073.0,0.57396698]
[1724251452903,0.00095838,60074.0,60073.0,0.91906154]
[1724251453313,0.00095838,60074.0,60073.0,0.58613354]
[1724251453555,0.16941938,60074.0,60073.0,0.01216656]
[1724251453834,0.00295838,60074.0,60073.0,0.01216656]
[1724251454030,0.00295838,60074.0,60066.0,0.602262]
[1724251454031,0.00095838,60068.0,60066.0,0.2693]
[1724251454247,0.00095838,60062.0,60060.0,0.435799]
[1724251454454,0.00095838,60062.0,60057.0,0.0009053]
[1724251454455,0.00095838,60058.0,60057.0,0.0009053]
[1724251454678,0.16946338,60058.0,60057.0,0.0009053]
[1724251454887,0.50247438,60058.0,60057.0,0.0009053]
[1724251455333,1.27618538,60058.0,60057.0,0.0009053]
[1724251455962,1.27718538,60058.0,60057.0,0.0019053]
[1724251456181,0.94417438,60058.0,60057.0,0.0019053]
[1724251456642,0.94317438,60058.0,60057.0,0.0009053]
[1724251456850,1.42902291,60058.0,60057.0,0.0019053]
[1724251457063,1.59302589,60058.0,60057.0,0.0019053]
[1724251457289,1.92703689,60058.0,60057.0,0.0019053]
[1724251457759,1.77419936,60058.0,60057.0,0.0019053]
[1724251457989,1.77619936,60058.0,60057.0,0.0029053]
[1724251458649,1.61219638,60058.0,60057.0,0.0029053]
[1724251458857,2.10821036,60058.0,60057.0,0.0019053]
[1724251459084,1.94217814,60058.0,60057.0,0.0029053]
[1724251459523,2.27418914,60058.0,60057.0,0.0019053]
[1724251459730,2.27518914,60058.0,60057.0,0.0019053]
[1724251459940,2.27418914,60058.0,60057.0,0.0019053]
[1724251460149,2.70620014,60058.0,60057.0,0.0019053]
[1724251460358,2.41181627,60058.0,60057.0,0.0019053]
[1724251460566,2.41281627,60058.0,60057.0,0.0019053]
[1724251460779,2.40981627,60058.0,60057.0,0.0019053]
[1724251460985,2.74782727,60058.0,60057.0,0.0029053]
[1724251461188,2.38874812,60058.0,60057.0,0.0029053]
[1724251461614,2.72175912,60058.0,60057.0,0.0029053]
[1724251461827,2.72075912,60058.0,60057.0,0.0029053]
[1724251462033,2.74375912,60058.0,60057.0,0.0029053]
[1724251462237,2.24676934,60058.0,60057.0,0.0029053]
[1724251463109,1.62475536,60058.0,60057.0,0.0029053]
[1724251463350,1.72475536,60058.0,60057.0,0.0029053]
[1724251463795,1.88875834,60058.0,60057.0,0.0029053]
[1724251464020,1.89075834,60058.0,60057.0,0.0029053]
[1724251464255,2.22176934,60058.0,60057.0,0.0029053]
[1724251464465,2.38574812,60058.0,60057.0,0.0029053]
[1724251464670,2.38774812,60058.0,60057.0,0.0029053]
[1724251464875,2.48574812,60058.0,60057.0,0.0029053]
[1724251465535,2.48774812,60058.0,60057.0,0.0029053]
[1724251465738,2.48874812,60058.0,60057.0,0.0029053]
[1724251465949,2.48774812,60058.0,60057.0,0.0029053]
[1724251466393,1.98875834,60058.0,60057.0,0.0029053]
[1724251467432,2.32376934,60058.0,60057.0,0.0029053]
[1724251467636,2.32176934,60058.0,60057.0,0.0029053]
[1724251468251,2.32376934,60058.0,60057.0,0.0029053]
[1724251468868,2.65778034,60058.0,60057.0,0.0029053]
[1724251469111,3.06285912,60058.0,60057.0,0.0029053]
[1724251469287,0.50268338,60033.0,60032.0,0.96199154]
[1724251469535,0.50268338,60033.0,60032.0,0.77461239]
[1724251469793,0.50268338,60033.0,60032.0,0.00902085]
[1724251470187,0.00195838,60031.0,60030.0,0.0009064]
[1724251470810,0.166578,60032.0,60030.0,0.0009064]
[1724251470811,0.001,60032.0,60030.0,0.0009064]
[1724251471010,0.001,60031.0,60030.0,0.0009064]
[1724251471225,0.00295838,60031.0,60030.0,0.0009064]
[1724251471661,0.00395838,60031.0,60030.0,0.0109064]
[1724251471891,0.50369938,60031.0,60030.0,0.0109064]
[1724251472138,0.83686038,60031.0,60030.0,0.0109064]
[1724251473267,1.17102138,60031.0,60030.0,0.0109064]
[1724251473493,0.83786038,60031.0,60030.0,0.0109064]
[1724251473710,1.17102138,60031.0,60030.0,0.0109064]
[1724251474342,1.72228238,60031.0,60030.0,0.0109064]
[1724251474566,1.88628536,60031.0,60030.0,0.0109064]
[1724251474783,2.31706414,60031.0,60030.0,0.0109064]
[1724251474994,2.41706414,60031.0,60030.0,0.0009064]
[1724251475209,2.81606414,60031.0,60030.0,0.0009064]
[1724251475419,3.35492514,60031.0,60030.0,0.0019064]
[1724251475627,3.35492514,60031.0,60030.0,0.0009064]
[1724251475628,3.36492514,60031.0,60030.0,0.0009064]
[1724251475858,3.36392514,60031.0,60030.0,0.0009064]
[1724251476074,2.25368536,60031.0,60030.0,0.0019064]
[1724251476764,2.23968536,60031.0,60030.0,0.0019064]
[1724251476989,2.25368536,60031.0,60030.0,0.0019064]
[1724251477458,2.45578536,60031.0,60030.0,0.0009064]
[1724251477690,2.46978536,60031.0,60030.0,0.0019064]
[1724251477908,3.03576414,60031.0,60030.0,0.0019064]
[1724251478146,3.03576414,60031.0,60030.0,0.0009064]
[1724251478147,3.02176414,60031.0,60030.0,0.0009064]
[1724251478338,3.02176414,60031.0,60030.0,0.0019064]
[1724251478569,3.02176414,60031.0,60030.0,0.0029064]
[1724251478570,2.87178536,60031.0,60030.0,0.0029064]
[1724251478788,2.85778536,60031.0,60030.0,0.0019064]
[1724251479229,3.19094636,60031.0,60030.0,0.0019064]
[1724251479434,2.87178536,60031.0,60030.0,0.0029064]
[1724251480060,2.85778536,60031.0,60030.0,0.0019064]
[1724251480263,2.87178536,60031.0,60030.0,0.0029064]
[1724251480469,2.85778536,60031.0,60030.0,0.0019064]
[1724251480912,2.89478536,60031.0,60030.0,0.0029064]
[1724251481103,2.87178536,60031.0,60030.0,0.0029064]
[1724251481325,3.39292514,60031.0,60030.0,0.0029064]
[1724251481530,2.87178536,60031.0,60030.0,0.0029064]
[1724251481742,3.20794636,60031.0,60030.0,4e-07]
[1724251481971,3.23094636,60031.0,60030.0,4e-07]
[1724251482190,2.23661838,60022.0,60021.0,0.0009042]
[1724251482396,3.36260014,60022.0,60021.0,0.0009042]
[1724251482609,3.36660014,60022.0,60021.0,0.0009042]
[1724251482837,0.95794938,60013.0,59997.0,0.009053]
[1724251483039,2.32067436,60013.0,59997.0,0.009053]
[1724251483244,3.15117514,60013.0,59997.0,0.009053]
[1724251483463,1.17148738,60007.0,59997.0,0.009053]
[1724251483669,2.45538436,60007.0,59997.0,0.009053]
[1724251483867,2.78867836,60007.0,59997.0,0.009053]
[1724251484076,3.21481977,60007.0,59997.0,0.009053]
[1724251484274,3.61789855,60007.0,59997.0,0.009053]
[1724251485119,3.63189855,60007.0,59997.0,0.009053]
[1724251485320,1.68700638,59998.0,59997.0,0.009053]
[1724251485537,2.33500936,59998.0,59997.0,0.009053]
[1724251485960,2.36115315,59998.0,59997.0,0.009053]
[1724251486166,2.36115315,59998.0,59996.0,0.009042]
[1724251486167,0.001,59997.0,59996.0,0.009042]
[1724251486370,0.001,59997.0,59970.0,0.0009042]
[1724251486371,0.67184638,59992.0,59973.0,0.49229154]
[1724251486562,0.16867438,59982.0,59973.0,0.49229154]
[1724251486769,1.76617636,59982.0,59973.0,0.49229154]
[1724251486967,1.76617636,59982.0,59971.0,0.0002]
[1724251486968,2.38470936,59982.0,59971.0,0.0002]
[1724251487242,0.00195838,59972.0,59971.0,0.0002]
[1724251487452,1.88375736,59972.0,59971.0,0.0002]
[1724251487629,1.88375736,59972.0,59971.0,0.00996725]
[1724251487865,1.88375736,59972.0,59971.0,0.0002]
[1724251488070,1.88575736,59972.0,59971.0,0.0002]
[1724251488424,1.88375736,59972.0,59971.0,0.0002]
[1724251488498,2.14685736,59972.0,59971.0,0.0002]
[1724251488697,2.17301288,59972.0,59971.0,0.0002]
[1724251488931,2.37211288,59972.0,59971.0,0.0002]
[1724251489157,1.60256238,59962.0,59951.0,0.0002]
[1724251489365,2.10010936,59962.0,59951.0,0.0002]
[1724251489860,1.50493338,59961.0,59960.0,0.0049462]
[1724251490062,1.66893636,59961.0,59960.0,0.0049462]
[1724251490311,1.66693636,59961.0,59960.0,0.0049462]
[1724251490531,1.17038338,59961.0,59960.0,0.0049462]
[1724251490965,1.88403636,59961.0,59960.0,0.0049462]
[1724251491178,1.89347411,59961.0,59960.0,0.0049462]
[1724251491390,1.89547411,59961.0,59960.0,0.0049462]
[1724251491600,1.91847411,59961.0,59960.0,0.0049462]
[1724251491806,1.34382411,59961.0,59960.0,0.0049462]
[1724251492448,1.17982113,59961.0,59960.0,0.0049462]
[1724251492683,1.17982113,59961.0,59960.0,0.2799462]
[1724251492684,0.52672113,59961.0,59960.0,0.2799462]
[1724251492883,0.53876275,59961.0,59960.0,0.2799462]
[1724251493094,0.53876275,59961.0,59960.0,0.28981156]
[1724251493095,0.52476275,59961.0,59960.0,0.28981156]
[1724251493306,0.52476275,59961.0,59960.0,0.2799462]
[1724251493307,0.51076275,59961.0,59960.0,0.2799462]
[1724251493548,0.52476275,59961.0,59960.0,0.28981156]
[1724251493764,0.181775,59961.0,59960.0,0.28981156]
[1724251493974,0.001,59961.0,59960.0,0.28981156]
[1724251494185,0.181775,59961.0,59960.0,0.28981156]
[1724251494390,0.193775,59961.0,59960.0,0.28981156]
[1724251494600,0.026,59961.0,59960.0,0.28981156]
[1724251495065,0.02616052,59962.0,59960.0,0.28981156]
[1724251495493,0.02616052,59962.0,59961.0,0.2636]
[1724251495914,0.02616052,59962.0,59961.0,0.27345644]
[1724251496140,0.7455349,59962.0,59961.0,0.27345644]
[1724251496349,1.0790789,59962.0,59961.0,0.27345644]
[1724251496596,1.0790789,59962.0,59961.0,0.2636]
[1724251496597,0.41003252,59962.0,59961.0,0.2636]
[1724251496802,0.25426052,59962.0,59961.0,0.2636]
[1724251497017,0.25426052,59962.0,59961.0,0.27345644]
[1724251497219,0.42103252,59962.0,59961.0,0.27345644]
[1724251497663,0.03716052,59962.0,59961.0,0.27345644]
[1724251497869,0.03716052,59962.0,59961.0,0.44023144]
[1724251498077,0.011,59962.0,59961.0,0.44023144]
[1724251498282,0.011,59962.0,59961.0,0.27345644]
[1724251499148,0.011,59962.0,59961.0,0.00985644]
[1724251499149,1.01182136,59962.0,59961.0,0.00985644]
[1724251499366,0.79801687,59962.0,59961.0,0.00985644]
[1724251499614,0.83583338,59961.0,59960.0,0.0049462]
[1724251500233,1.16938338,59961.0,59960.0,0.0049462]
[1724251500462,0.83583338,59961.0,59960.0,0.0049462]
[1724251500880,0.166772,59962.0,59960.0,0.0049462]
[1724251501087,0.16872138,59966.0,59961.0,0.2452]
[1724251501330,0.21805838,59967.0,59961.0,0.25505644]
[1724251501543,0.00195838,59962.0,59961.0,0.25505644]
[1724251501755,0.50227438,59962.0,59961.0,0.25505644]
[1724251501959,1.05191838,59962.0,59961.0,0.25505644]
[1724251502166,1.38546238,59962.0,59961.0,0.25505644]
[1724251502376,1.05191838,59962.0,59961.0,0.2452]
[1724251502816,0.71837438,59962.0,59961.0,0.2452]
[1724251503039,0.00195838,59962.0,59961.0,0.2452]
[1724251503243,0.168772,59962.0,59961.0,0.25505644]
[1724251503658,0.16677,59963.0,59961.0,0.25505644]
[1724251503888,0.333529,59965.0,59961.0,0.25505644]
[1724251503889,0.166767,59964.0,59961.0,0.25505644]
[1724251504097,0.002,59962.0,59961.0,0.42183144]
[1724251504321,0.02811422,59967.0,59961.0,0.42183144]
[1724251504322,0.19487322,59967.0,59961.0,0.25505644]
[1724251504527,0.19487522,59967.0,59961.0,0.25505644]
[1724251504736,0.02791356,59967.0,59961.0,0.25705644]
[1724251504944,0.02595518,59967.0,59962.0,0.1971]
[1724251505161,0.19271418,59967.0,59962.0,0.1971]
[1724251505574,0.19271418,59967.0,59966.0,0.500283]
[1724251505575,0.02595518,59967.0,59966.0,0.500283]
[1724251505805,0.00195838,59983.0,59973.0,0.1971]
[1724251506009,0.2161,59988.0,59978.0,0.166727]
[1724251506010,0.166708,59985.0,59978.0,0.166727]
[1724251506236,0.00195838,59987.0,59977.0,0.2234]
[1724251506453,0.00095838,59979.0,59977.0,0.2234]
[1724251506656,0.00095838,59978.0,59977.0,0.2234]
[1724251507771,0.16868538,59978.0,59977.0,0.2234]
[1724251507986,0.16868538,59978.0,59977.0,0.2284]
[1724251507987,0.50214038,59978.0,59977.0,0.2284]
[1724251508210,0.83559538,59978.0,59977.0,0.2284]
[1724251508632,0.50214038,59978.0,59977.0,0.2294]
[1724251508837,0.83559538,59978.0,59977.0,0.2294]
[1724251509115,0.50214038,59978.0,59977.0,0.2294]
[1724251509334,0.83559538,59978.0,59977.0,0.005]
[1724251509555,0.83559538,59978.0,59969.0,0.2329]
[1724251509556,0.00195838,59970.0,59969.0,0.2329]
[1724251509996,0.16675,59970.0,59969.0,0.2329]
[1724251510417,0.166769,59963.0,59962.0,0.243]
[1724251510634,0.166772,59962.0,59961.0,0.0009064]
[1724251510861,0.83386,59962.0,59961.0,0.0009064]
[1724251511080,0.500316,59962.0,59961.0,0.0009064]
[1724251511508,0.2161,59965.0,59961.0,0.0009064]
[1724251511723,0.16677,59963.0,59961.0,0.0009064]
[1724251511932,0.2161,59965.0,59961.0,0.0009064]
[1724251512185,0.2161,59965.0,59962.0,0.2334]
[1724251512392,0.833847,59963.0,59962.0,0.2334]
[1724251512605,0.833847,59963.0,59961.0,0.0009064]
[1724251512606,0.83386,59962.0,59961.0,0.0009064]
[1724251512815,0.166772,59962.0,59961.0,0.0009064]
[1724251513026,0.166768,59964.0,59961.0,0.0009064]
[1724251513229,0.166769,59963.0,59962.0,0.2458]
[1724251513455,0.00943749,59968.0,59962.0,0.2458]
[1724251513456,0.166756,59968.0,59962.0,0.2458]
[1724251513678,0.82568754,59989.0,59962.0,0.2458]
[1724251513679,0.2161,59975.0,59963.0,0.183]
[1724251513892,0.166754,59969.0,59964.0,0.2458]
[1724251514148,0.333483,59973.0,59964.0,0.2458]
[1724251514149,0.500247,59971.0,59964.0,0.2458]
[1724251514359,0.333498,59971.0,59964.0,0.2458]
[1724251514572,0.166757,59968.0,59964.0,0.2458]
[1724251515009,0.333506,59969.0,59964.0,0.2458]
[1724251515223,0.166763,59965.0,59964.0,0.2458]
[1724251515506,0.216103,59970.0,59964.0,0.2458]
[1724251515660,0.16676,59967.0,59964.0,0.2458]
[1724251516108,0.333515,59968.0,59964.0,0.2458]
[1724251516543,0.003,59969.0,59964.0,0.2458]
[1724251516799,0.166763,59965.0,59964.0,0.2458]
[1724251517010,0.166759,59967.0,59964.0,0.2468]
[1724251517221,0.166762,59966.0,59964.0,0.2468]
[1724251517653,0.216103,59970.0,59964.0,0.2468]
[1724251517864,0.216103,59970.0,59964.0,0.2458]
[1724251518286,0.001,59967.0,59964.0,0.2508]
[1724251518491,0.001,59967.0,59961.0,0.0009064]
[1724251518492,0.2161,59965.0,59961.0,0.0009064]
[1724251518709,0.500316,59962.0,59961.0,0.0009064]
[1724251518937,0.33351,59969.0,59961.0,0.0009064]
[1724251519167,0.16676,59967.0,59963.0,0.2295]
[1724251519418,0.333511,59968.0,59963.0,0.2295]
[1724251519643,0.217103,59970.0,59963.0,0.2295]
[1724251519847,0.217103,59970.0,59966.0,0.1815]
[1724251519848,0.001003,59970.0,59966.0,0.1815]
[1724251520077,3e-06,59970.0,59966.0,0.1815]
[1724251520307,3e-06,59970.0,59966.0,0.34826]
[1724251520548,3e-06,59970.0,59969.0,0.242]
[1724251520818,3e-06,59970.0,59969.0,1.42459965]
[1724251521036,3e-06,59970.0,59969.0,0.75425498]
[1724251521522,3e-06,59970.0,59969.0,0.242]
[1724251521759,0.166762,59966.0,59963.0,0.002]
[1724251522004,0.166762,59966.0,59961.0,0.0009064]
[1724251522203,3e-06,59970.0,59961.0,0.0009064]
[1724251522204,0.334503,59970.0,59969.0,0.021]
[1724251522426,0.835753,59970.0,59969.0,0.021]
[1724251522666,0.502253,59970.0,59969.0,0.021]
[1724251522870,0.502253,59970.0,59969.0,0.431052]
[1724251522871,0.002003,59970.0,59969.0,0.431052]
[1724251523094,0.002003,59970.0,59969.0,0.960757]
[1724251523329,0.001003,59970.0,59969.0,1.12572872]
[1724251523537,3e-06,59970.0,59969.0,1.11372872]
[1724251523949,0.001003,59970.0,59969.0,1.45823372]
[1724251524154,3e-06,59970.0,59969.0,1.44723372]
[1724251524603,0.001003,59970.0,59969.0,1.79073872]
[1724251524809,0.2161,59984.0,59976.0,0.2373]
[1724251525013,0.801511,59986.0,59977.0,0.333457]
[1724251525014,0.333411,59986.0,59977.0,0.333457]
[1724251525223,0.166711,59984.0,59978.0,0.166727]
[1724251525635,0.2161,59989.0,59980.0,0.1803]
[1724251525863,0.166701,59988.0,59981.0,0.414417]
[1724251526079,0.00924555,59993.0,59981.0,0.25756174]
[1724251526299,0.2161,59989.0,59981.0,0.25756174]
[1724251526542,0.00924555,59993.0,59981.0,0.25756174]
[1724251526543,0.500149,59982.0,59981.0,0.00986174]
[1724251526758,0.500149,59982.0,59974.0,0.1846]
[1724251526759,0.549523,59984.0,59976.0,0.2314]
[1724251526977,0.003,59986.0,59974.0,0.1846]
[1724251526978,0.003,59986.0,59981.0,0.333437]
[1724251527225,0.003,59986.0,59981.0,0.49743898]
[1724251527453,0.003,59986.0,59982.0,0.17656782]
[1724251527691,0.003,59986.0,59983.0,0.166713]
[1724251527902,0.382797,59989.0,59983.0,0.166712]
[1724251528075,0.2161,59989.0,59984.0,0.00983499]
[1724251528306,0.344377,59993.0,59984.0,0.00983499]
[1724251528307,0.166691,59991.0,59984.0,0.00983499]
[1724251528558,0.011,59993.0,59989.0,0.166694]
[1724251528716,0.166677,59997.0,59991.0,0.166689]
[1724251528917,0.549437,60000.0,59992.0,0.16400298]
[1724251528918,0.2161,60000.0,59992.0,0.16400298]
[1724251529092,0.166656,60004.0,59997.0,0.166675]
[1724251529326,0.549405,60005.0,59997.0,0.2341]
[1724251529655,0.16666,60003.0,59997.0,0.24381914]
[1724251529914,0.166662,60002.0,59997.0,0.24381914]
[1724251530119,0.549405,60005.0,59997.0,0.24381914]
[1724251530332,0.166659,60003.0,59997.0,0.41049414]
[1724251530557,0.549405,60005.0,59997.0,0.24381914]
[1724251530558,0.166661,60002.0,59997.0,0.24381914]
[1724251531180,0.50084,59998.0,59997.0,0.00971914]
[1724251531396,1.360828,59998.0,59997.0,0.00971914]
[1724251531608,1.360828,59998.0,59989.0,0.001]
[1724251531609,0.500082,59990.0,59989.0,0.001]
[1724251531833,0.2161,59991.0,59987.0,0.166702]
[1724251532043,0.2161,59991.0,59983.0,0.2361]
[1724251532044,0.000824,59998.0,59989.0,0.00979043]
[1724251532269,0.167497,59998.0,59992.0,0.166687]
[1724251532487,0.167497,59998.0,59990.0,0.41190298]
[1724251532488,0.166679,59996.0,59990.0,0.58837749]
[1724251532725,0.168497,59998.0,59997.0,0.001]
[1724251532952,0.333344,59998.0,59997.0,0.001]
[1724251533156,0.500017,59998.0,59997.0,0.001]
[1724251533380,0.500017,59998.0,59990.0,0.57859498]
[1724251533381,0.166675,59997.0,59990.0,0.57859498]
[1724251533611,0.166675,59997.0,59991.0,0.16669]
[1724251533813,0.166679,59996.0,59991.0,0.17377558]
[1724251534022,0.166681,59995.0,59991.0,0.17377558]
[1724251534223,0.00917465,60003.0,59991.0,0.0097726]
[1724251534224,0.166688,59992.0,59991.0,0.0097726]
[1724251534453,0.833442,59992.0,59991.0,0.0097726]
[1724251534659,0.166711,59985.0,59982.0,0.2401]
[1724251534888,0.166713,59983.0,59982.0,0.2401]
[1724251535101,0.2161,59986.0,59974.0,0.2279]
[1724251535358,0.2161,59986.0,59961.0,0.0009064]
[1724251535359,0.50025,59970.0,59969.0,0.2279]
[1724251535564,0.166763,59965.0,59964.0,0.2288064]
[1724251535781,0.166763,59965.0,59964.0,0.0009064]
[1724251535782,0.833817,59965.0,59964.0,0.0009064]
[1724251535976,0.4438,59976.0,59964.0,0.0009064]
[1724251535977,0.333487,59973.0,59964.0,0.4194064]
[1724251536191,0.2161,59976.0,59965.0,0.16400298]
[1724251536389,0.166743,59973.0,59965.0,0.33076598]
[1724251536592,0.166738,59975.0,59970.0,0.2257]
[1724251536798,0.2161,59981.0,59970.0,0.2257]
[1724251537011,0.166736,59975.0,59970.0,0.2257]
[1724251537221,0.166739,59974.0,59970.0,0.2257]
[1724251537853,0.166742,59973.0,59970.0,0.2257]
[1724251538066,0.166748,59971.0,59965.0,0.39030298]
[1724251538272,0.166748,59971.0,59965.0,0.55706598]
[1724251538479,0.171744,59973.0,59965.0,0.55706598]
[1724251538684,0.166744,59973.0,59965.0,0.55706598]
[1724251538924,0.166744,59973.0,59970.0,0.001]
[1724251539150,0.001,59974.0,59965.0,0.72382698]
[1724251539405,0.16774,59974.0,59966.0,0.166759]
[1724251539635,0.2161,59976.0,59965.0,0.39030298]
[1724251539636,0.166761,59966.0,59965.0,0.006]
[1724251539839,0.382861,59966.0,59965.0,0.006]
[1724251540096,0.716383,59966.0,59965.0,0.006]
[1724251540508,0.500283,59966.0,59965.0,0.006]
[1724251540713,0.50029,59965.0,59964.0,0.0009064]
[1724251541374,0.833817,59965.0,59964.0,0.0009064]
[1724251541588,1.57704698,59965.0,59964.0,0.0009064]
[1724251541804,1.91057398,59965.0,59964.0,0.0009064]
[1724251542022,2.20407398,59965.0,59964.0,0.0039064]
[1724251542226,1.606544,59965.0,59964.0,0.0039064]
[1724251542432,1.15559,59965.0,59964.0,0.0039064]
[1724251542644,0.91089,59965.0,59964.0,0.0109064]
[1724251542890,1.244417,59965.0,59964.0,0.0109064]
[1724251543162,1.244417,59965.0,59964.0,0.0079064]
[1724251543911,2.01364698,59965.0,59964.0,0.0079064]
[1724251544092,2.11264698,59965.0,59964.0,0.0009064]
[1724251544307,2.11864698,59965.0,59964.0,0.0019064]
[1724251544516,2.45517398,59965.0,59964.0,0.0019064]
[1724251544725,2.12164698,59965.0,59964.0,0.0019064]
[1724251544938,2.12764698,59965.0,59964.0,0.0029064]
[1724251545203,2.12164698,59965.0,59964.0,0.0019064]
[1724251545460,1.934644,59965.0,59964.0,0.0019064]
[1724251545670,1.940644,59965.0,59964.0,0.0029064]
[1724251546362,2.10464698,59965.0,59964.0,0.0029064]
[1724251547208,2.12764698,59965.0,59964.0,0.0029064]
[1724251547421,2.12964698,59965.0,59964.0,0.0029064]
[1724251547629,2.46317398,59965.0,59964.0,0.0029064]
[1724251548128,2.68027398,59965.0,59964.0,0.0029064]
[1724251548347,2.70638253,59965.0,59964.0,0.0029064]
[1724251548562,3.04190953,59965.0,59964.0,0.0029064]
[1724251548767,3.20388831,59965.0,59964.0,0.0029064]
[1724251548970,2.80880953,59965.0,59964.0,0.0009064]
[1724251549173,2.47328253,59965.0,59964.0,0.0009064]
[1724251549410,2.49728253,59965.0,59964.0,0.0029064]
[1724251549600,2.85425276,59965.0,59964.0,0.0029064]
[1724251549810,2.88036232,59965.0,59964.0,0.0029064]
[1724251550046,3.04991054,59965.0,59964.0,0.0029064]
[1724251550248,2.71438354,59965.0,59964.0,0.0029064]
[1724251550465,3.04791054,59965.0,59964.0,0.0029064]
[1724251550697,2.47117398,59965.0,59964.0,0.0029064]
[1724251550978,2.45817398,59965.0,59964.0,0.0019064]
[1724251551163,2.46017398,59965.0,59964.0,0.0019064]
[1724251551399,2.67627398,59965.0,59964.0,0.0019064]
[1724251551613,2.66327398,59965.0,59964.0,0.0009064]
[1724251552028,3.02680098,59965.0,59964.0,0.0019064]
[1724251552230,3.19077976,59965.0,59964.0,0.0019064]
[1724251552443,3.20489014,59965.0,59964.0,0.0009064]
[1724251552671,3.17677976,59965.0,59964.0,0.0009064]
[1724251552894,3.17877976,59965.0,59964.0,0.0009064]
[1724251553119,2.272292,59962.0,59961.0,0.0009064]
[1724251553324,2.272292,59962.0,59951.0,0.0002]
[1724251553325,1.0501,59952.0,59951.0,0.0002]
[1724251553548,1.0501,59952.0,59942.0,0.01177409]
[1724251553549,0.500475,59943.0,59942.0,0.01177409]
[1724251553760,2.53962798,59943.0,59942.0,0.01177409]
[1724251553996,3.06125676,59943.0,59942.0,0.01177409]
[1724251554205,3.16125676,59943.0,59942.0,0.01177409]
[1724251554442,3.15377863,59943.0,59942.0,0.01177409]
[1724251554659,3.15310454,59943.0,59942.0,0.01177409]
[1724251554886,3.15310454,59943.0,59910.0,0.49229154]
[1724251554887,2.089699,59932.0,59926.0,0.49229154]
[1724251555097,1.94329098,59932.0,59926.0,0.49229154]
[1724251555323,1.64809098,59932.0,59923.0,0.235]
[1724251555550,1.64809098,59932.0,59902.0,0.333878]
[1724251555551,0.3319,59931.0,59905.0,0.009053]
[1724251555781,1.05074,59906.0,59905.0,0.009053]
[1724251556002,0.83464,59906.0,59905.0,0.009053]
[1724251556225,0.2161,59909.0,59905.0,0.155253]
[1724251556431,0.2161,59909.0,59906.0,0.2456]
[1724251556850,0.2161,59909.0,59906.0,0.24953144]
[1724251557076,0.166925,59907.0,59906.0,0.00893144]
[1724251557303,0.166928,59906.0,59905.0,0.009053]
[1724251557512,0.166928,59906.0,59905.0,0.155553]
[1724251557731,0.2161,59909.0,59905.0,0.155553]
[1724251557952,0.2161,59909.0,59905.0,0.16449338]
[1724251558167,0.2281,59909.0,59906.0,0.001]
[1724251558394,0.166925,59907.0,59906.0,0.00993144]
[1724251558602,0.166928,59906.0,59905.0,0.156553]
[1724251558829,0.166928,59906.0,59905.0,0.009053]
[1724251559086,1.21474298,59906.0,59905.0,0.009053]
[1724251559298,1.21474298,59906.0,59905.0,0.010053]
[1724251559299,1.64859898,59906.0,59905.0,0.010053]
[1724251559510,1.84539898,59906.0,59905.0,0.009053]
[1724251559945,1.43249898,59906.0,59905.0,0.013053]
[1724251560162,1.268496,59906.0,59905.0,0.014053]
[1724251560389,0.500784,59906.0,59905.0,0.014053]
[1724251560610,0.500784,59906.0,59905.0,0.359253]
[1724251561058,0.5572,59905.0,59895.0,0.1]
[1724251561272,0.716968,59896.0,59895.0,0.1]
[1724251561486,2.28270698,59896.0,59895.0,0.1]
[1724251561703,2.38270698,59896.0,59895.0,0.1]
[1724251561916,2.40570698,59896.0,59895.0,0.1]
[1724251562350,1.484792,59896.0,59895.0,0.101]
[1724251562575,1.15088,59896.0,59895.0,0.101]
[1724251562782,0.2161,59896.0,59895.0,0.2595]
[1724251562998,0.397056,59896.0,59895.0,0.4455]
[1724251563217,1.06488,59896.0,59895.0,0.4455]
[1724251563463,1.66928298,59896.0,59895.0,0.101]
[1724251563663,2.29670698,59896.0,59895.0,0.101]
[1724251564104,1.66279498,59896.0,59895.0,0.101]
[1724251564309,1.66279498,59896.0,59895.0,0.04795202]
[1724251564310,2.5867989,59896.0,59895.0,0.04795202]
[1724251564521,2.5867989,59896.0,59882.0,0.0117741]
[1724251564522,0.16656435,59883.0,59882.0,0.0117741]
[1724251564746,1.70041933,59883.0,59882.0,0.0117741]
[1724251564961,2.15740333,59883.0,59882.0,0.0117741]
[1724251565862,1.64861933,59883.0,59882.0,0.0117741]
[1724251566078,1.43251933,59883.0,59882.0,0.0117741]
[1724251566286,0.2161,59886.0,59882.0,0.1657741]
[1724251566496,0.166988,59885.0,59882.0,0.17746662]
[1724251566720,0.2161,59886.0,59882.0,0.17746662]
[1724251566927,0.2161,59886.0,59883.0,0.1918]
[1724251567355,0.2161,59886.0,59884.0,0.01166569]
[1724251567569,1.15393498,59885.0,59884.0,0.01166569]
[1724251567786,1.77260798,59885.0,59884.0,0.01166569]
[1724251567995,1.77260798,59885.0,59882.0,0.0117741]
[1724251567996,0.83496,59883.0,59882.0,0.0117741]
[1724251568230,1.43294698,59883.0,59882.0,0.0117741]
[1724251568452,1.76673038,59883.0,59882.0,0.0117741]
[1724251568663,1.78973038,59883.0,59882.0,0.0117741]
[1724251569075,1.95370916,59883.0,59882.0,0.0117741]
[1724251569358,1.80173038,59883.0,59882.0,0.0117741]
[1724251569559,1.46774638,59883.0,59882.0,0.0117741]
[1724251569783,1.46774638,59883.0,59882.0,0.0126816]
[1724251569998,1.81128981,59883.0,59882.0,0.0126816]
[1724251570649,1.47730581,59883.0,59882.0,0.0126816]
[1724251570860,2.02738981,59883.0,59882.0,0.0126816]
[1724251571086,2.02938981,59883.0,59882.0,0.0126816]
[1724251571504,1.68640581,59883.0,59882.0,0.0126816]
[1724251571727,0.94431883,59883.0,59882.0,0.0126816]
[1724251571940,0.550063,59887.0,59882.0,0.2010816]
[1724251572153,0.014,59883.0,59882.0,0.2010816]
[1724251572370,0.66497898,59883.0,59882.0,0.2010816]
[1724251572585,1.33294698,59883.0,59882.0,0.0126816]